bitfinex-derivatives/quotes_BTCF0:USTF0_20240917
["timestamp","ask_amount","ask_price","bid_price","bid_amount"]
[1726571285819,0.1608,59207.0,59206.0,0.3608]
[1726571287529,0.00120001,59215.0,59214.0,0.084435]
[1726571287722,0.00120001,59219.0,59216.0,0.084431]
[1726571287913,0.16,59223.0,59217.0,0.4828]
[1726571288437,0.1686488,59223.0,59217.0,0.4828]
[1726571288725,0.16,59219.0,59217.0,0.4828]
[1726571289520,0.16865978,59219.0,59217.0,0.4828]
[1726571290126,0.16865978,59219.0,59214.0,0.3608]
[1726571290318,0.0004,59215.0,59214.0,0.3608]
[1726571291127,0.00879527,59215.0,59214.0,0.3608]
[1726571291627,0.0004,59215.0,59214.0,1.46744]
[1726571292032,0.0074,59215.0,59214.0,1.46744]
[1726571294133,0.0074,59215.0,59214.0,0.86744]
[1726571295134,0.0074,59215.0,59214.0,0.3608]
[1726571303637,0.091835,59215.0,59208.0,0.3608]
[1726571303838,0.16,59210.0,59208.0,0.3608]
[1726571304036,0.0004,59209.0,59208.0,0.3608]
[1726571305241,0.0014,59209.0,59208.0,0.3608]
[1726571305447,0.0014,59209.0,59206.0,0.0008]
[1726571305644,0.0004,59207.0,59206.0,0.0008]
[1726571307037,0.1604,59207.0,59206.0,0.0008]
[1726571307437,0.1604,59207.0,59206.0,0.0028]
[1726571308448,0.1664,59207.0,59206.0,0.0008]
[1726571309143,0.0064,59207.0,59206.0,0.0008]
[1726571309452,0.0064,59207.0,59206.0,1.191966]
[1726571309940,0.0064,59207.0,59206.0,1.21520744]
[1726571311146,0.0064,59207.0,59206.0,0.591966]
[1726571311645,0.0064,59207.0,59206.0,1.10752]
[1726571312941,0.0064,59207.0,59206.0,1.191966]
[1726571314054,0.0039,59219.0,59206.0,1.10752]
[1726571314245,0.00824156,59219.0,59218.0,0.3612]
[1726571314451,0.16,59227.0,59218.0,0.3612]
[1726571314651,0.244416,59227.0,59226.0,0.0004]
[1726571315455,0.328832,59227.0,59226.0,0.0004]
[1726571315959,1.435352,59227.0,59226.0,0.0004]
[1726571316458,1.350936,59227.0,59226.0,0.0004]
[1726571316647,1.725736,59227.0,59226.0,0.0004]
[1726571316846,1.79504832,59227.0,59226.0,0.0004]
[1726571317155,1.725736,59227.0,59226.0,0.0004]
[1726571317360,1.725736,59227.0,59226.0,0.0014]
[1726571318046,1.795736,59227.0,59226.0,0.0014]
[1726571318554,1.71132,59227.0,59226.0,0.0014]
[1726571318851,0.6048,59227.0,59226.0,0.0014]
[1726571319051,0.014,59227.0,59226.0,0.0014]
[1726571319444,0.244,59227.0,59226.0,0.0014]
[1726571319650,0.24493128,59227.0,59226.0,0.0014]
[1726571319955,0.60573128,59227.0,59226.0,0.0014]
[1726571326559,0.01493128,59227.0,59226.0,0.0014]
[1726571326747,0.01493128,59227.0,59226.0,0.085818]
[1726571327754,0.00864223,59232.0,59226.0,1.276756]
[1726571328062,0.3608,59240.0,59231.0,0.5912]
[1726571328063,0.00832446,59237.0,59231.0,0.5912]
[1726571328254,0.3608,59240.0,59236.0,0.0004]
[1726571328554,0.36904588,59240.0,59236.0,0.084803]
[1726571328764,0.36904588,59240.0,59237.0,0.2414]
[1726571328958,0.02171609,59245.0,59237.0,1.34784]
[1726571329166,0.44642701,59248.0,59244.0,0.0004]
[1726571329458,0.46762919,59248.0,59244.0,0.0004]
[1726571329853,0.23,59245.0,59244.0,0.0004]
[1726571330056,0.23834474,59245.0,59244.0,0.0004]
[1726571331649,0.23834474,59245.0,59244.0,0.0014]
[1726571331650,0.24034474,59245.0,59244.0,0.0014]
[1726571332257,0.30963543,59245.0,59244.0,0.0014]
[1726571332963,1.50038643,59245.0,59244.0,0.0014]
[1726571338164,0.90038643,59245.0,59244.0,0.0014]
[1726571338965,0.90038643,59245.0,59244.0,0.00126001]
[1726571340066,0.83038643,59245.0,59244.0,0.001]
[1726571340366,0.23963543,59245.0,59236.0,0.0039]
[1726571340564,0.0004,59237.0,59230.0,0.3843]
[1726571340755,0.0004,59232.0,59231.0,0.445211]
[1726571340972,0.0004,59237.0,59231.0,0.445211]
[1726571341159,0.0004,59237.0,59236.0,0.0004]
[1726571341460,0.06969069,59237.0,59236.0,0.0004]
[1726571341657,0.0034,59237.0,59236.0,0.0004]
[1726571342267,0.0034,59237.0,59236.0,0.0014]
[1726571342864,0.07269069,59237.0,59236.0,0.0014]
[1726571343064,0.0034,59237.0,59236.0,0.0014]
[1726571343773,0.07269069,59237.0,59236.0,0.0014]
[1726571344169,0.0034,59237.0,59236.0,0.0014]
[1726571344375,0.07269069,59237.0,59232.0,0.07722811]
[1726571344572,0.0004,59233.0,59232.0,0.07722811]
[1726571344760,0.06969069,59233.0,59232.0,0.07722811]
[1726571345977,0.07469069,59233.0,59232.0,0.07822811]
[1726571347267,0.0054,59233.0,59232.0,0.07822811]
[1726571349278,0.0054,59233.0,59232.0,0.001]
[1726571349582,0.089808,59233.0,59232.0,0.001]
[1726571351472,0.450608,59233.0,59232.0,0.001]
[1726571352168,0.695016,59233.0,59232.0,0.001]
[1726571352468,0.610608,59233.0,59232.0,0.001]
[1726571352668,1.63268,59233.0,59232.0,0.001]
[1726571352874,0.5262,59233.0,59232.0,0.001]
[1726571353474,0.610608,59233.0,59232.0,0.001]
[1726571354985,0.5262,59233.0,59232.0,0.001]
[1726571356285,0.610608,59233.0,59232.0,0.001]
[1726571360376,0.695016,59233.0,59232.0,0.001]
[1726571360772,0.610608,59233.0,59232.0,0.001]
[1726571361474,1.117088,59233.0,59232.0,0.001]
[1726571361783,0.5262,59233.0,59232.0,0.001]
[1726571362282,0.59550799,59233.0,59232.0,0.001]
[1726571363683,0.76432399,59233.0,59232.0,0.001]
[1726571364080,0.77032399,59233.0,59232.0,0.001]
[1726571365390,1.00412399,59233.0,59232.0,0.001]
[1726571367085,1.00412399,59233.0,59224.0,0.0039]
[1726571367086,0.084419,59225.0,59224.0,0.0039]
[1726571367274,0.084425,59221.0,59215.0,0.00643291]
[1726571367477,0.06930799,59220.0,59215.0,0.00253291]
[1726571367677,0.15413399,59220.0,59215.0,0.00253291]
[1726571367884,0.08443,59218.0,59215.0,0.00253291]
[1726571368075,0.06930799,59220.0,59215.0,0.00253291]
[1726571368076,0.1604,59216.0,59215.0,0.00253291]
[1726571368282,0.244832,59216.0,59215.0,0.00253291]
[1726571368486,0.1604,59216.0,59215.0,0.00253291]
[1726571369084,0.22970799,59216.0,59215.0,0.00253291]
[1726571369382,0.1604,59216.0,59215.0,0.00253291]
[1726571369589,0.22970799,59216.0,59215.0,0.00253291]
[1726571370288,0.23470799,59216.0,59215.0,0.00353291]
[1726571370489,0.1654,59216.0,59215.0,0.00353291]
[1726571370684,0.249832,59216.0,59215.0,0.001]
[1726571372091,0.334264,59216.0,59215.0,0.001]
[1726571373382,0.249832,59216.0,59215.0,0.001]
[1726571373889,0.27224847,59216.0,59215.0,0.001]
[1726571374094,0.18781647,59216.0,59215.0,0.001]
[1726571374981,0.27224847,59216.0,59215.0,0.001]
[1726571381198,0.27824847,59216.0,59215.0,0.001]
[1726571382285,0.63904847,59216.0,59215.0,0.001]
[1726571382692,0.55461647,59216.0,59215.0,0.001]
[1726571383595,0.0039,59226.0,59215.0,1.10764]
[1726571383891,0.3608,59227.0,59224.0,0.0004]
[1726571384390,0.5208,59227.0,59224.0,0.0004]
[1726571384591,0.52196,59227.0,59224.0,0.0004]
[1726571384899,0.005,59225.0,59224.0,0.0004]
[1726571385391,0.005,59225.0,59224.0,0.0014]
[1726571386690,0.089419,59225.0,59224.0,0.0014]
[1726571387002,0.005,59225.0,59224.0,0.0014]
[1726571390699,0.07431328,59225.0,59224.0,0.00126001]
[1726571391898,0.07431328,59225.0,59224.0,0.161]
[1726571391899,0.005,59225.0,59224.0,0.161]
[1726571392806,0.005,59225.0,59224.0,0.245421]
[1726571393704,0.449107,59234.0,59224.0,1.351981]
[1726571393909,0.445207,59234.0,59233.0,0.0004]
[1726571394403,0.4678071,59234.0,59233.0,0.0004]
[1726571395105,0.4688071,59234.0,59233.0,0.0014]
[1726571395605,0.3844001,59234.0,59233.0,0.0014]
[1726571399409,0.4688061,59234.0,59233.0,0.0014]
[1726571400508,0.53811209,59234.0,59233.0,0.00126001]
[1726571401503,0.084414,59229.0,59225.0,0.3608]
[1726571401708,0.1604,59226.0,59225.0,0.3608]
[1726571401907,0.22970599,59226.0,59225.0,0.3608]
[1726571402311,0.084419,59225.0,59220.0,0.00253291]
[1726571402514,0.59050599,59226.0,59220.0,0.00253291]
[1726571402515,0.1604,59221.0,59220.0,0.00253291]
[1726571402815,0.22970599,59221.0,59220.0,0.00253291]
[1726571403315,0.59050599,59221.0,59216.0,0.001]
[1726571403515,0.084829,59218.0,59211.0,0.00253313]
[1726571403810,0.15413499,59218.0,59211.0,0.00253313]
[1726571404418,0.15413499,59218.0,59217.0,0.00244001]
[1726571407415,0.084829,59218.0,59217.0,0.00244001]
[1726571411417,0.0004,59218.0,59217.0,0.00244001]
[1726571413123,0.084829,59218.0,59217.0,0.00244001]
[1726571413925,0.0004,59218.0,59217.0,0.00244001]
[1726571415423,0.0004,59218.0,59217.0,1.19347001]
[1726571415722,0.0222,59218.0,59217.0,1.19347001]
[1726571416121,0.0222,59218.0,59217.0,0.50904001]
[1726571416718,0.0222,59218.0,59217.0,0.00244001]
[1726571420925,0.04480596,59218.0,59217.0,0.00244001]
[1726571421125,0.0222,59218.0,59217.0,0.00244001]
[1726571425523,0.106629,59218.0,59217.0,0.00244001]
[1726571426026,0.0222,59218.0,59217.0,0.00244001]
[1726571426727,0.383,59218.0,59217.0,0.00244001]
[1726571426926,0.0222,59218.0,59217.0,0.00244001]
[1726571445251,0.106629,59218.0,59217.0,0.00244001]
[1726571446439,0.0222,59218.0,59217.0,0.00244001]
[1726571449959,0.106629,59218.0,59217.0,0.00244001]
[1726571450152,0.0222,59218.0,59217.0,0.00244001]
[1726571454349,0.106629,59218.0,59217.0,0.00244001]
[1726571456354,0.0222,59218.0,59217.0,0.00244001]
[1726571463265,0.383,59218.0,59217.0,0.00244001]
[1726571464570,0.467429,59218.0,59217.0,0.00244001]
[1726571464769,0.383,59218.0,59217.0,0.00244001]
[1726571467061,0.0222,59218.0,59217.0,0.00244001]
[1726571467259,0.0039,59229.0,59217.0,1.26904001]
[1726571467563,0.0039,59231.0,59228.0,0.0004]
[1726571467771,0.3608,59236.0,59230.0,0.0004]
[1726571467973,0.16,59233.0,59230.0,0.0004]
[1726571469964,0.16,59233.0,59230.0,0.0014]
[1726571470166,0.02190697,59233.0,59230.0,0.0014]
[1726571470365,0.3608,59234.0,59230.0,0.0014]
[1726571470769,0.3608,59234.0,59233.0,0.0004]
[1726571471572,0.38300083,59234.0,59233.0,0.0004]
[1726571472967,0.38300083,59234.0,59233.0,0.0014]
[1726571476092,0.02220083,59234.0,59233.0,0.00088798]
[1726571476272,0.3608,59238.0,59233.0,0.00088798]
[1726571476477,0.38288533,59238.0,59237.0,0.0004]
[1726571477179,0.38288533,59238.0,59233.0,0.00088798]
[1726571477377,0.0004,59234.0,59233.0,0.00088798]
[1726571477678,0.0004,59234.0,59233.0,0.445208]
[1726571478672,0.0004,59234.0,59233.0,1.551688]
[1726571478876,0.0039,59242.0,59241.0,0.16]
[1726571479077,0.3608,59246.0,59241.0,0.244796]
[1726571479377,0.3608,59246.0,59242.0,0.084395]
[1726571479585,0.02630605,59250.0,59245.0,0.3612]
[1726571479880,0.02240605,59250.0,59249.0,0.0004]
[1726571480081,0.084377,59255.0,59245.0,0.3612]
[1726571480271,0.0004,59246.0,59245.0,0.3612]
[1726571480465,0.0004,59246.0,59245.0,0.605591]
[1726571480672,0.0039,59254.0,59245.0,1.62756]
[1726571480984,0.3829913,59256.0,59253.0,0.0004]
[1726571481178,0.3829913,59256.0,59255.0,0.0004]
[1726571483679,0.3829913,59256.0,59255.0,0.0014]
[1726571484771,0.66186,59260.0,59255.0,0.085775]
[1726571484772,0.00116,59260.0,59255.0,0.085775]
[1726571484973,0.00116,59260.0,59259.0,0.0004]
[1726571485174,0.0039,59266.0,59259.0,0.0004]
[1726571485374,0.084356,59270.0,59265.0,0.0004]
[1726571486275,0.16,59271.0,59265.0,0.0004]
[1726571486477,0.244354,59271.0,59265.0,0.0004]
[1726571486675,0.02685069,59268.0,59265.0,0.0004]
[1726571487181,0.02685069,59268.0,59265.0,0.0014]
[1726571487587,0.16,59267.0,59265.0,0.0014]
[1726571489572,0.16,59267.0,59265.0,0.0004]
[1726571489774,0.16,59267.0,59265.0,0.0014]
[1726571494992,0.02685069,59268.0,59265.0,0.0014]
[1726571495196,0.18685069,59268.0,59267.0,0.0004]
[1726571496890,0.18685069,59268.0,59267.0,0.0014]
[1726571497286,0.27120869,59268.0,59267.0,0.0014]
[1726571499999,0.27120869,59268.0,59267.0,0.0004]
[1726571500193,0.27120869,59268.0,59267.0,0.0014]
[1726571500597,0.27120869,59268.0,59267.0,0.0004]
[1726571500798,0.27120869,59268.0,59267.0,0.0014]
[1726571501403,0.27120869,59268.0,59267.0,0.0004]
[1726571501598,0.27120869,59268.0,59267.0,0.0014]
[1726571502206,0.63200869,59268.0,59267.0,0.0014]
[1726571504897,0.71636669,59268.0,59267.0,0.0014]
[1726571505102,0.63200869,59268.0,59267.0,0.0014]
[1726571505703,0.71636669,59268.0,59267.0,0.0014]
[1726571505903,0.72563532,59268.0,59267.0,0.0014]
[1726571507303,0.65636669,59268.0,59267.0,0.0014]
[1726571508706,0.72563532,59268.0,59267.0,0.0014]
[1726571508911,0.084377,59255.0,59247.0,0.22003495]
[1726571509110,0.1004,59248.0,59247.0,0.22003495]
[1726571509508,0.1004,59248.0,59247.0,0.72639495]
[1726571510211,0.1004,59248.0,59247.0,0.22003495]
[1726571510417,0.24771916,59248.0,59247.0,0.22003495]
[1726571510913,0.26965853,59248.0,59239.0,0.2152]
[1726571511111,0.1004,59240.0,59238.0,0.00253206]
[1726571511312,0.06966863,59239.0,59238.0,0.00253206]
[1726571511514,0.06926863,59239.0,59238.0,0.00253206]
[1726571511914,0.22926863,59239.0,59238.0,0.00253206]
[1726571512118,0.31366763,59239.0,59238.0,0.00253206]
[1726571513111,0.244399,59239.0,59238.0,0.00253206]
[1726571513717,0.26500306,59239.0,59238.0,0.00253206]
[1726571514217,0.26500306,59239.0,59238.0,0.00353206]
[1726571514512,0.18060406,59239.0,59238.0,0.00353206]
[1726571514912,0.02060406,59239.0,59238.0,0.00353206]
[1726571515215,0.00890878,59240.0,59238.0,0.00353206]
[1726571515719,0.00890878,59240.0,59239.0,0.0004]
[1726571517320,0.0301024,59240.0,59239.0,0.0004]
[1726571517518,0.0004,59240.0,59239.0,0.0004]
[1726571518119,0.00871205,59240.0,59239.0,0.0004]
[1726571518520,0.09311005,59240.0,59239.0,0.0004]
[1726571519021,0.09311005,59240.0,59239.0,0.0014]
[1726571519325,0.00871205,59240.0,59239.0,0.0014]
[1726571521517,0.00871205,59240.0,59239.0,0.0004]
[1726571521717,0.00871205,59240.0,59239.0,0.0014]
[1726571521914,0.10871205,59240.0,59239.0,0.0014]
[1726571522719,0.10871205,59240.0,59239.0,0.0004]
[1726571522919,0.10871205,59240.0,59239.0,0.0014]
[1726571530118,0.19311005,59240.0,59239.0,0.0014]
[1726571535822,0.10871205,59240.0,59239.0,0.0014]
[1726571537633,0.19311005,59240.0,59239.0,0.0014]
[1726571539426,0.36190605,59240.0,59239.0,0.0014]
[1726571539621,0.084413,59229.0,59228.0,0.00264001]
[1726571539826,0.806013,59229.0,59228.0,0.00264001]
[1726571540127,1.462613,59229.0,59228.0,0.00264001]
[1726571540532,1.547026,59229.0,59228.0,0.00264001]
[1726571540729,1.61632998,59229.0,59228.0,0.00264001]
[1726571541736,0.084429,59218.0,59214.0,0.0039]
[1726571541933,0.3608,59215.0,59210.0,0.6763]
[1726571542131,0.3608,59215.0,59210.0,0.6753]
[1726571542132,0.3616,59215.0,59210.0,0.6753]
[1726571543036,0.06931413,59214.0,59210.0,0.6753]
[1726571543337,0.06931413,59213.0,59210.0,0.6773]
[1726571543535,0.3616,59215.0,59210.0,0.6773]
[1726571545831,0.06931413,59214.0,59210.0,0.2294]
[1726571546040,0.16,59213.0,59210.0,0.2294]
[1726571546540,0.16,59213.0,59210.0,0.2304]
[1726571548447,0.16,59213.0,59210.0,0.003]
[1726571548932,0.16,59213.0,59207.0,0.00253315]
[1726571549241,0.16,59213.0,59210.0,0.002]
[1726571550341,0.16,59213.0,59207.0,0.00753315]
[1726571550542,0.0008,59208.0,59207.0,0.00753315]
[1726571551248,0.00917273,59208.0,59207.0,0.00753315]
[1726571551448,0.00717273,59208.0,59207.0,0.00253315]
[1726571551638,0.16,59213.0,59207.0,0.00333315]
[1726571551839,0.25305976,59213.0,59207.0,0.00333315]
[1726571553042,0.084438,59212.0,59207.0,0.00833315]
[1726571553435,0.16862376,59213.0,59207.0,0.00833315]
[1726571553644,0.16,59209.0,59207.0,0.00833315]
[1726571554450,0.16830004,59209.0,59207.0,0.00817315]
[1726571557241,0.084443,59208.0,59207.0,0.00817315]
[1726571557848,0.084443,59208.0,59207.0,0.00717315]
[1726571558052,0.16830004,59209.0,59207.0,0.00717315]
[1726571558752,0.1898705,59209.0,59207.0,0.00717315]
[1726571559450,0.2743125,59209.0,59207.0,0.00717315]
[1726571559657,0.1898705,59209.0,59207.0,0.00717315]
[1726571559867,0.084443,59208.0,59207.0,0.00717315]
[1726571560245,0.084443,59208.0,59207.0,0.00317315]
[1726571560447,0.084454,59201.0,59195.0,0.36333315]
[1726571560648,0.084454,59201.0,59185.0,0.3608]
[1726571560649,0.0008,59196.0,59189.0,0.4442]
[1726571560842,0.0008,59196.0,59182.0,0.5208]
[1726571560843,0.5216,59190.0,59182.0,0.3608]
[1726571561051,0.1608,59183.0,59182.0,0.38308619]
[1726571561354,0.16,59183.0,59182.0,0.3608]
[1726571561556,0.156,59187.0,59182.0,0.3608]
[1726571561942,0.16,59184.0,59182.0,0.3608]
[1726571562866,0.16,59184.0,59181.0,0.00253458]
[1726571563158,0.0008,59182.0,59178.0,0.21255458]
[1726571563350,0.001,59183.0,59182.0,0.0082]
[1726571563545,0.161,59183.0,59182.0,0.0082]
[1726571563752,0.16,59183.0,59182.0,0.0008]
[1726571563951,0.16,59183.0,59182.0,0.0048]
[1726571564643,0.16,59194.0,59182.0,1.27172]
[1726571564857,0.16,59194.0,59184.0,0.3608]
[1726571564858,0.02893816,59193.0,59184.0,0.3608]
[1726571565152,0.16,59187.0,59185.0,0.4301]
[1726571566250,0.16,59187.0,59185.0,0.2085]
[1726571567460,0.3608,59192.0,59185.0,0.2085]
[1726571567461,0.16,59191.0,59185.0,0.2085]
[1726571568154,0.001,59187.0,59185.0,0.2085]
[1726571568359,0.161,59187.0,59185.0,0.2085]
[1726571568557,0.16,59187.0,59185.0,0.2085]
[1726571570355,0.161,59187.0,59185.0,0.2085]
[1726571570549,0.161,59187.0,59183.0,0.084479]
[1726571570750,0.0004,59184.0,59183.0,0.084478]
[1726571571760,0.0004,59184.0,59183.0,0.591358]
[1726571571957,0.0004,59184.0,59183.0,0.593358]
[1726571572862,0.0039,59195.0,59183.0,1.193358]
[1726571573055,0.0008,59196.0,59195.0,0.084462]
[1726571573255,0.0039,59205.0,59204.0,0.084449]
[1726571573567,0.00116,59212.0,59205.0,0.16]
[1726571573870,0.0039,59216.0,59211.0,0.3608]
[1726571574056,0.02113506,59221.0,59215.0,0.1604]
[1726571574256,0.00116,59224.0,59221.0,0.084424]
[1726571574462,0.00116,59224.0,59217.0,0.3608]
[1726571574463,0.0039,59232.0,59223.0,0.1604]
[1726571574657,0.3608,59235.0,59231.0,0.0004]
[1726571574861,0.3608,59235.0,59234.0,0.0004]
[1726571575059,0.3608,59235.0,59228.0,0.5208]
[1726571575457,0.0004,59229.0,59228.0,0.5208]
[1726571575853,0.0004,59229.0,59228.0,0.86732]
[1726571576053,0.0004,59229.0,59224.0,0.00096]
[1726571576254,0.0004,59225.0,59223.0,0.0014]
[1726571576456,0.0004,59224.0,59223.0,0.0014]
[1726571576962,0.0004,59225.0,59223.0,0.0014]
[1726571577158,0.0004,59225.0,59224.0,0.0004]
[1726571578066,0.3612,59225.0,59224.0,0.0004]
[1726571578553,0.445619,59225.0,59224.0,0.0004]
[1726571578753,0.455619,59225.0,59224.0,0.0004]
[1726571579256,0.445619,59225.0,59224.0,0.0014]
[1726571579456,0.459619,59225.0,59224.0,0.0014]
[1726571580356,0.3752,59225.0,59224.0,0.0014]
[1726571580964,0.38275599,59225.0,59224.0,0.0004]
[1726571581153,0.39675599,59225.0,59224.0,0.0014]
[1726571583067,0.3752,59225.0,59224.0,0.0014]
[1726571589777,0.459619,59225.0,59224.0,0.0014]
[1726571590673,1.336,59225.0,59210.0,0.0039]
[1726571590873,1.336,59225.0,59203.0,0.577]
[1726571590874,0.1608,59211.0,59203.0,0.577]
[1726571591067,0.16913307,59211.0,59205.0,0.084447]
[1726571591268,0.00913307,59211.0,59210.0,0.5208]
[1726571591465,0.0008,59211.0,59210.0,0.60524]
[1726571591678,0.0008,59211.0,59210.0,1.71192]
[1726571591874,0.0008,59211.0,59210.0,1.46848]
[1726571592181,0.00915673,59211.0,59210.0,0.3618]
[1726571592477,0.0008,59211.0,59210.0,0.86848]
[1726571592976,0.00943983,59211.0,59210.0,0.86848]
[1726571593167,0.0008,59211.0,59210.0,0.86848]
[1726571593364,0.00943898,59211.0,59210.0,0.3618]
[1726571593571,0.0008,59211.0,59210.0,0.3618]
[1726571594180,0.02135701,59211.0,59210.0,0.3618]
[1726571594875,0.02235701,59211.0,59210.0,0.3618]
[1726571604488,0.02235701,59211.0,59210.0,0.3608]
[1726571607090,0.10679601,59211.0,59210.0,0.3608]
[1726571607280,0.55203501,59211.0,59210.0,0.001]
[1726571607980,0.46759601,59211.0,59210.0,0.001]
[1726571608186,0.55203501,59211.0,59210.0,0.001]
[1726571608385,0.46759601,59211.0,59210.0,0.001]
[1726571608885,0.48918183,59211.0,59210.0,0.001]
[1726571615589,1.51142283,59211.0,59196.0,0.0059]
[1726571615790,0.244859,59197.0,59196.0,0.002]
[1726571617192,0.1604,59197.0,59196.0,0.002]
[1726571617904,0.1604,59197.0,59196.0,0.162]
[1726571617905,0.0004,59197.0,59196.0,0.162]
[1726571618200,0.0114,59197.0,59196.0,0.24646]
[1726571618406,0.0114,59197.0,59196.0,0.162]
[1726571619098,0.0114,59197.0,59196.0,0.18321757]
[1726571621303,0.0114,59197.0,59196.0,0.02321757]
[1726571621304,0.095859,59197.0,59196.0,0.02321757]
[1726571623006,0.095859,59197.0,59196.0,0.002]
[1726571624402,0.0114,59197.0,59196.0,0.002]
[1726571624802,0.0114,59197.0,59196.0,0.30466]
[1726571625506,0.0039,59206.0,59196.0,1.327]
[1726571625811,0.0039,59210.0,59206.0,0.084446]
[1726571626006,0.0008,59211.0,59209.0,0.1604]
[1726571626314,0.0039,59219.0,59210.0,0.3608]
[1726571626514,0.02080185,59221.0,59218.0,0.0004]
[1726571626707,0.084422,59223.0,59220.0,0.0004]
[1726571627011,0.084422,59223.0,59222.0,0.0004]
[1726571627206,0.084422,59223.0,59218.0,0.0004]
[1726571627406,0.16,59227.0,59222.0,0.3608]
[1726571627611,0.449108,59233.0,59222.0,0.5208]
[1726571627909,0.084416,59227.0,59226.0,0.0004]
[1726571628707,0.530516,59227.0,59226.0,0.0004]
[1726571629313,0.690516,59227.0,59226.0,0.0004]
[1726571630211,0.6061,59227.0,59226.0,0.0004]
[1726571630411,0.6121,59227.0,59226.0,0.0014]
[1726571630613,0.8369,59227.0,59226.0,0.0014]
[1726571631700,0.8369,59227.0,59226.0,0.001]
[1726571631905,0.8369,59227.0,59226.0,0.00089653]
[1726571632411,0.85830772,59227.0,59226.0,0.00089653]
[1726571633405,1.00566234,59227.0,59212.0,0.5303]
[1726571633605,0.0004,59215.0,59212.0,0.52728]
[1726571633803,0.14775462,59215.0,59212.0,0.20598]
[1726571634012,0.06970995,59215.0,59212.0,0.2051]
[1726571634321,0.14775462,59215.0,59212.0,0.2051]
[1726571635821,0.14775462,59215.0,59214.0,0.00353302]
[1726571636021,0.06970995,59215.0,59214.0,1.35460802]
[1726571636215,0.0004,59215.0,59214.0,1.35460802]
[1726571636521,0.0144,59215.0,59214.0,1.35460802]
[1726571637020,0.0144,59215.0,59214.0,0.75460802]
[1726571637218,0.0144,59215.0,59214.0,0.59460802]
[1726571638411,0.0144,59215.0,59214.0,0.08796802]
[1726571638612,0.0144,59215.0,59214.0,0.00353302]
[1726571643117,0.0144,59215.0,59214.0,0.08796802]
[1726571644227,0.3608,59221.0,59220.0,0.084426]
[1726571644522,0.3608,59221.0,59220.0,0.084826]
[1726571644925,0.3608,59221.0,59220.0,0.0004]
[1726571645118,0.3608,59221.0,59220.0,0.02109143]
[1726571645522,0.3608,59221.0,59220.0,0.10551743]
[1726571645918,0.3608,59221.0,59220.0,1.21211743]
[1726571646219,0.3648,59221.0,59220.0,1.21311743]
[1726571646425,0.3608,59228.0,59227.0,0.084416]
[1726571646626,0.3608,59228.0,59227.0,0.084816]
[1726571648721,0.3608,59228.0,59227.0,0.10637088]
[1726571649115,0.3618,59228.0,59227.0,0.10737088]
[1726571649519,0.43110116,59228.0,59227.0,0.08038055]
[1726571650926,0.43010116,59228.0,59227.0,0.07938055]
[1726571651123,0.43010116,59228.0,59227.0,0.08038055]
[1726571652623,0.43110116,59228.0,59227.0,0.08038055]
[1726571653132,0.75993116,59228.0,59227.0,0.0014]
[1726571653336,0.83796593,59228.0,59227.0,0.0014]
[1726571653522,0.084422,59223.0,59213.0,0.088336]
[1726571653720,0.084422,59223.0,59213.0,0.084436]
[1726571653721,0.0004,59214.0,59213.0,0.084436]
[1726571653923,0.06970116,59214.0,59213.0,0.084436]
[1726571654336,0.14773593,59214.0,59213.0,0.084436]
[1726571655526,0.0004,59214.0,59213.0,0.084436]
[1726571656532,0.0024,59214.0,59213.0,0.084436]
[1726571661442,0.3632,59214.0,59213.0,0.084436]
[1726571666250,0.591085,59213.0,59195.0,0.00096]
[1726571666445,0.591085,59213.0,59190.0,0.5208]
[1726571666446,0.3612,59206.0,59190.0,0.5208]
[1726571666649,0.3612,59206.0,59196.0,0.084469]
[1726571666650,0.3608,59200.0,59196.0,0.084469]
[1726571666852,0.36934123,59200.0,59196.0,0.084469]
[1726571667347,0.36934123,59200.0,59189.0,0.43313425]
[1726571667551,0.0008,59190.0,59189.0,0.87841325]
[1726571669555,0.0008,59190.0,59189.0,0.44781325]
[1726571670350,0.0008,59190.0,59189.0,0.00253425]
[1726571670650,0.0018,59190.0,59189.0,0.00253425]
[1726571673056,0.0018,59190.0,59189.0,0.08701325]
[1726571674653,0.0018,59190.0,59189.0,0.00253425]
[1726571675453,0.5226,59190.0,59189.0,0.00253425]
[1726571676357,0.607077,59190.0,59189.0,0.00253425]
[1726571676549,0.08448,59189.0,59178.0,0.084494]
[1726571676750,0.3608,59181.0,59178.0,0.084494]
[1726571676949,0.0008,59179.0,59178.0,0.084494]
[1726571678142,0.0008,59179.0,59178.0,0.094494]
[1726571681860,0.0008,59179.0,59178.0,0.178989]
[1726571682159,0.0008,59179.0,59178.0,0.571789]
[1726571683050,0.0008,59179.0,59178.0,0.487294]
[1726571683750,0.0008,59179.0,59178.0,0.477294]
[1726571683953,0.0008,59179.0,59178.0,0.478294]
[1726571684551,0.0008,59179.0,59178.0,0.562789]
[1726571688063,0.0058,59179.0,59178.0,0.562789]
[1726571688455,0.0058,59179.0,59178.0,0.478294]
[1726571689063,0.0058,59179.0,59178.0,0.085494]
[1726571690458,0.0058535,59179.0,59178.0,0.085494]
[1726571693065,0.1658535,59179.0,59178.0,0.085494]
[1726571693853,0.1658535,59179.0,59178.0,0.001]
[1726571696366,0.5266535,59179.0,59178.0,0.001]
[1726571697565,0.54641517,59179.0,59178.0,0.001]
[1726571700964,0.54641517,59179.0,59178.0,0.05146102]
[1726571701160,0.54641517,59179.0,59178.0,0.001]
[1726571701374,1.73786817,59179.0,59178.0,0.001]
[1726571701570,1.05337517,59179.0,59178.0,0.001]
[1726571702162,1.13786817,59179.0,59178.0,0.001]
[1726571702363,1.73786817,59179.0,59178.0,0.001]
[1726571702973,1.05337517,59179.0,59178.0,0.001]